[Event "Championnat d'Europe de Blitz"]
[Date "2024.12.09"]
[White "Van Foreest, Lucas"]
[Black "Quilter, Thomas A"]
[WhiteElo "2520"]
[BlackElo "2162"]
[Round "1.21"]
[Result "1-0"]
[TimeControl "180+2"]

1. e4 {[%emt 00:00:01] [%clk 00:03:02]} d5 {[%clk 00:03:04]} 2. exd5 {[%emt
00:00:01] [%clk 00:03:03]} c6 {[%clk 00:03:05]} 3. dxc6 {[%emt 00:00:03] [%clk
00:03:02]} Nxc6 {[%clk 00:03:06]} 4. Nf3 {[%emt 00:00:02] [%clk 00:03:02]} e5
{[%emt 00:00:01] [%clk 00:03:08]} 5. Bb5 {[%emt 00:00:02] [%clk 00:03:01]} Bd6
{[%clk 00:03:09]} 6. d4 {[%emt 00:00:04] [%clk 00:03:00]} exd4 {[%emt 00:00:05]
[%clk 00:03:06]} 7. Nxd4 {[%emt 00:00:01] [%clk 00:03:00]} Nge7 {[%clk
00:03:08]} 8. O-O {[%emt 00:00:07] [%clk 00:02:55]} O-O {[%emt 00:00:05] [%clk
00:03:05]} 9. Nxc6 {[%emt 00:00:01] [%clk 00:02:56]} Nxc6 {[%emt 00:00:08] [%clk
00:03:00]} 10. Nc3 {[%emt 00:00:06] [%clk 00:02:51]} Bf5 {[%emt 00:00:03] [%clk
00:02:58]} 11. Bd3 {[%emt 00:00:09] [%clk 00:02:44]} Qf6 {[%emt 00:00:50] [%clk
00:02:11]} 12. Bxf5 {[%emt 00:00:05] [%clk 00:02:41]} Qxf5 {[%clk 00:02:12]} 13.
Qxd6 {[%emt 00:00:02] [%clk 00:02:41]} Qxc2 {[%emt 00:00:39] [%clk 00:01:34]}
14. Qd1 {[%emt 00:00:20] [%clk 00:02:23]} Qg6 {[%emt 00:00:03] [%clk 00:01:34]}
15. Be3 {[%clk 00:02:23]} Rad8 {[%emt 00:00:02] [%clk 00:01:35]} 16. Qf3 {[%emt
00:00:01] [%clk 00:02:24]} Ne5 {[%emt 00:00:01] [%clk 00:01:36]} 17. Qg3 {[%clk
00:02:25]} Qh5 {[%emt 00:00:09] [%clk 00:01:29]} 18. Qg5 {[%emt 00:00:05] [%clk
00:02:22]} Qxg5 {[%emt 00:00:19] [%clk 00:01:12]} 19. Bxg5 {[%emt 00:00:01]
[%clk 00:02:23]} f6 {[%clk 00:01:14]} 20. Be3 {[%clk 00:02:24]} Nc4 {[%clk
00:01:15]} 21. Bxa7 {[%emt 00:00:01] [%clk 00:02:25]} Nxb2 {[%emt 00:00:01]
[%clk 00:01:16]} 22. Rab1 {[%emt 00:00:01] [%clk 00:02:26]} Nc4 {[%emt 00:00:04]
[%clk 00:01:14]} 23. Rxb7 {[%emt 00:00:01] [%clk 00:02:27]} Rc8 {[%emt 00:00:02]
[%clk 00:01:14]} 24. Nd5 {[%emt 00:00:02] [%clk 00:02:27]} Kh8 {[%emt 00:00:03]
[%clk 00:01:14]} 25. h3 {[%emt 00:00:01] [%clk 00:02:27]} Rfd8 {[%emt 00:00:03]
[%clk 00:01:12]} 26. Ne7 {[%clk 00:02:28]} Ra8 {[%emt 00:00:02] [%clk 00:01:13]}
27. Rc1 {[%emt 00:00:02] [%clk 00:02:28]} Nd6 {[%emt 00:00:07] [%clk 00:01:08]}
28. Rbc7 {[%emt 00:00:10] [%clk 00:02:20]} Nb5 {[%emt 00:00:03] [%clk 00:01:07]}
29. Be3 {[%emt 00:00:20] [%clk 00:02:00]} Nxc7 {[%emt 00:00:06] [%clk 00:01:05]}
30. Rxc7 {[%emt 00:00:01] [%clk 00:02:01]} Rxa2 {[%emt 00:00:03] [%clk
00:01:04]} 31. Nf5 {[%emt 00:00:01] [%clk 00:02:03]} Rg8 {[%emt 00:00:38] [%clk
00:00:27]} 32. Bd4 {[%emt 00:00:01] [%clk 00:02:03]} Ra4 {[%emt 00:00:03] [%clk
00:00:27]} 33. g4 {[%emt 00:00:03] [%clk 00:02:01]} h6 {[%emt 00:00:09] [%clk
00:00:21]} 34. Kg2 {[%emt 00:00:02] [%clk 00:02:01]} Rd8 {[%emt 00:00:06] [%clk
00:00:16]} 35. Be3 {[%emt 00:00:05] [%clk 00:01:59]} h5 {[%emt 00:00:04] [%clk
00:00:14]} 36. Rxg7 {[%emt 00:00:14] [%clk 00:01:47]} hxg4 {[%emt 00:00:02]
[%clk 00:00:14]} 37. hxg4 {[%clk 00:01:48]} Rg8 {[%emt 00:00:07] [%clk
00:00:09]} 38. Rxg8+ {[%emt 00:00:03] [%clk 00:01:46]} Kxg8 {[%clk 00:00:11]}
39. f3 {[%emt 00:00:02] [%clk 00:01:47]} Kf7 {[%emt 00:00:01] [%clk 00:00:12]}
40. Kg3 {[%emt 00:00:01] [%clk 00:01:47]} Kg6 {[%clk 00:00:14]} 41. Nh4+ {[%emt
00:00:13] [%clk 00:01:36]} Kf7 {[%emt 00:00:01] [%clk 00:00:15]} 42. Ng2 {[%emt
00:00:01] [%clk 00:01:37]} Ra3 {[%emt 00:00:01] [%clk 00:00:16]} 43. Bf2 {[%emt
00:00:03] [%clk 00:01:35]} Rb3 {[%emt 00:00:01] [%clk 00:00:18]} 44. Nf4 {[%emt
00:00:02] [%clk 00:01:36]} Ra3 {[%clk 00:00:19]} 45. Nh5 {[%emt 00:00:04] [%clk
00:01:34]} Ra4 {[%emt 00:00:01] [%clk 00:00:20]} 46. Be3 {[%emt 00:00:03] [%clk
00:01:33]} Kg6 {[%emt 00:00:02] [%clk 00:00:19]} 47. Bd2 {[%emt 00:00:04] [%clk
00:01:31]} Ra3 {[%emt 00:00:04] [%clk 00:00:18]} 48. Bb4 {[%emt 00:00:02] [%clk
00:01:31]} Rb3 {[%emt 00:00:02] [%clk 00:00:18]} 49. Bc5 {[%emt 00:00:08] [%clk
00:01:25]} Rc3 {[%emt 00:00:04] [%clk 00:00:16]} 50. Bd4 {[%emt 00:00:01] [%clk
00:01:25]} Rc1 {[%emt 00:00:13] [%clk 00:00:06]} 51. Bxf6 {[%emt 00:00:02] [%clk
00:01:25]} Rh1 {[%emt 00:00:01] [%clk 00:00:07]} 52. Bd4 {[%emt 00:00:03] [%clk
00:01:24]} Rd1 {[%emt 00:00:02] [%clk 00:00:08]} 53. Bf2 {[%emt 00:00:01] [%clk
00:01:24]} Ra1 {[%emt 00:00:01] [%clk 00:00:09]} 54. Nf4+ {[%emt 00:00:02] [%clk
00:01:24]} Kf7 {[%emt 00:00:01] [%clk 00:00:10]} 55. Ng2 {[%emt 00:00:10] [%clk
00:01:16]} Ra2 {[%emt 00:00:01] [%clk 00:00:11]} 56. Ne3 {[%emt 00:00:01] [%clk
00:01:16]} Ra1 {[%emt 00:00:01] [%clk 00:00:13]} 57. Nc2 {[%clk 00:01:17]} Ra2
{[%emt 00:00:01] [%clk 00:00:14]} 58. Nb4 {[%clk 00:01:17]} Ra1 {[%emt 00:00:01]
[%clk 00:00:15]} 59. Nd3 {[%emt 00:00:02] [%clk 00:01:18]} Ra2 {[%clk 00:00:16]}
60. Ne5+ {[%emt 00:00:02] [%clk 00:01:18]} Ke6 {[%clk 00:00:18]} 61. Nc6 {[%emt
00:00:01] [%clk 00:01:18]} Ra1 {[%emt 00:00:02] [%clk 00:00:18]} 62. Na7 {[%emt
00:00:01] [%clk 00:01:19]} Ra2 {[%emt 00:00:02] [%clk 00:00:19]} 63. Nb5 {[%emt
00:00:01] [%clk 00:01:19]} Kf7 {[%emt 00:00:01] [%clk 00:00:20]} 64. Nc3 {[%emt
00:00:02] [%clk 00:01:20]} Rc2 {[%emt 00:00:01] [%clk 00:00:21]} 65. Na4 {[%emt
00:00:01] [%clk 00:01:20]} Ra2 {[%clk 00:00:22]} 66. Nc5 {[%emt 00:00:01] [%clk
00:01:21]} Rc2 {[%clk 00:00:23]} 67. Nd3 {[%emt 00:00:01] [%clk 00:01:21]} Ra2
{[%emt 00:00:01] [%clk 00:00:25]} 68. Kg2 {[%clk 00:01:22]} Kg8 {[%emt 00:00:02]
[%clk 00:00:25]} 69. Nb4 {[%clk 00:01:23]} Rb2 {[%clk 00:00:26]} 70. Nc6 {[%emt
00:00:01] [%clk 00:01:24]} Ra2 {[%clk 00:00:28]} 71. Na7 {[%emt 00:00:01] [%clk
00:01:25]} Rb2 {[%emt 00:00:01] [%clk 00:00:28]} 72. Nc8 {[%clk 00:01:25]} Ra2
{[%emt 00:00:01] [%clk 00:00:29]} 73. Ne7+ {[%emt 00:00:01] [%clk 00:01:26]} Kf7
{[%clk 00:00:31]} 74. Nc6 {[%emt 00:00:02] [%clk 00:01:27]} Rb2 {[%emt 00:00:02]
[%clk 00:00:30]} 75. Nd4 {[%emt 00:00:01] [%clk 00:01:27]} Ra2 {[%emt 00:00:01]
[%clk 00:00:31]} 76. Nf5 {[%emt 00:00:02] [%clk 00:01:27]} Kg6 {[%emt 00:00:03]
[%clk 00:00:31]} 77. Kg3 {[%emt 00:00:02] [%clk 00:01:27]} Rc2 {[%clk 00:00:31]}
78. Nh4+ {[%emt 00:00:02] [%clk 00:01:27]} Kf7 {[%clk 00:00:33]} 79. f4 {[%emt
00:00:01] [%clk 00:01:28]} Rc3+ {[%emt 00:00:10] [%clk 00:00:25]} 80. Nf3 {[%emt
00:00:01] [%clk 00:01:29]} Ra3 {[%emt 00:00:02] [%clk 00:00:25]} 81. Bd4 {[%clk
00:01:30]} Ra2 {[%emt 00:00:07] [%clk 00:00:20]} 82. Bc5 {[%clk 00:01:31]} Ra5
{[%emt 00:00:02] [%clk 00:00:21]} 83. Bb6 {[%emt 00:00:01] [%clk 00:01:32]} Ra6
{[%emt 00:00:01] [%clk 00:00:22]} 84. Bc7 {[%clk 00:01:33]} Ra7 {[%clk
00:00:24]} 85. Bb8 {[%emt 00:00:01] [%clk 00:01:34]} Rb7 {[%clk 00:00:25]} 86.
Bd6 {[%emt 00:00:01] [%clk 00:01:35]} Ra7 {[%clk 00:00:26]} 87. Bb4 {[%emt
00:00:01] [%clk 00:01:35]} Ra4 {[%clk 00:00:28]} 88. Bc3 {[%clk 00:01:36]} Ra3
{[%emt 00:00:01] [%clk 00:00:29]} 89. Bb2 {[%emt 00:00:02] [%clk 00:01:37]} Ra2
{[%clk 00:00:30]} 90. Bc1 {[%clk 00:01:38]} Ra1 {[%emt 00:00:01] [%clk
00:00:32]} 91. Bd2 {[%emt 00:00:01] [%clk 00:01:39]} Ra2 {[%clk 00:00:33]} 92.
Be3 {[%emt 00:00:01] [%clk 00:01:39]} Ra3 {[%emt 00:00:01] [%clk 00:00:34]} 93.
Bf2 {[%clk 00:01:40]} Rb3 {[%clk 00:00:35]} 94. Bg1 {[%emt 00:00:02] [%clk
00:01:41]} Ra3 {[%clk 00:00:37]} 95. Bh2 {[%emt 00:00:02] [%clk 00:01:41]} Rb3
{[%clk 00:00:38]} 96. f5 {[%emt 00:00:02] [%clk 00:01:41]} Kf6 {[%emt 00:00:04]
[%clk 00:00:36]} 97. Bg1 {[%clk 00:01:42]} Ra3 {[%emt 00:00:07] [%clk 00:00:32]}
98. Bf2 {[%emt 00:00:01] [%clk 00:01:43]} Rb3 {[%emt 00:00:01] [%clk 00:00:33]}
99. Be1 {[%clk 00:01:44]} Ra3 {[%clk 00:00:34]} 100. Bd2 {[%emt 00:00:01] [%clk
00:01:45]} Rb3 {[%emt 00:00:01] [%clk 00:00:35]} 101. Bc1 {[%emt 00:00:01] [%clk
00:01:46]} Rb1 {[%emt 00:00:02] [%clk 00:00:36]} 102. Ba3 {[%clk 00:01:47]} Rb3
{[%emt 00:00:01] [%clk 00:00:36]} 103. Bc5 {[%emt 00:00:02] [%clk 00:01:48]} Rb1
{[%emt 00:00:09] [%clk 00:00:29]} 104. Ba7 {[%clk 00:01:49]} Rb2 {[%emt
00:00:02] [%clk 00:00:30]} 105. Be3 {[%clk 00:01:49]} Rb1 {[%emt 00:00:02] [%clk
00:00:30]} 106. Bd4+ {[%emt 00:00:02] [%clk 00:01:49]} Kf7 {[%emt 00:00:01]
[%clk 00:00:32]} 107. g5 {[%emt 00:00:36] [%clk 00:01:14]} Rb4 {[%emt 00:00:03]
[%clk 00:00:31]} 108. Bc3 {[%emt 00:00:02] [%clk 00:01:14]} Rb3 {[%clk
00:00:32]} 109. Bd2 {[%emt 00:00:02] [%clk 00:01:14]} Ra3 {[%emt 00:00:02] [%clk
00:00:32]} 110. Bb4 {[%emt 00:00:01] [%clk 00:01:15]} Rb3 {[%emt 00:00:01] [%clk
00:00:33]} 111. Bc5 {[%clk 00:01:15]} Rc3 {[%emt 00:00:02] [%clk 00:00:34]} 112.
Bd6 {[%emt 00:00:01] [%clk 00:01:16]} Rb3 {[%emt 00:00:03] [%clk 00:00:34]} 113.
Be5 {[%clk 00:01:16]} Ra3 {[%emt 00:00:01] [%clk 00:00:35]} 114. Kg4 {[%emt
00:00:01] [%clk 00:01:17]} Rb3 {[%emt 00:00:05] [%clk 00:00:32]} 115. Bd4 {[%emt
00:00:03] [%clk 00:01:16]} Rb4 {[%clk 00:00:33]} 116. Kf4 {[%emt 00:00:01] [%clk
00:01:17]} Ra4 {[%emt 00:00:02] [%clk 00:00:34]} 117. Ke4 {[%clk 00:01:17]} Rb4
{[%emt 00:00:04] [%clk 00:00:33]} 118. Ne5+ {[%emt 00:00:01] [%clk 00:01:18]}
Kg8 {[%emt 00:00:06] [%clk 00:00:28]} 119. Nc6 {[%emt 00:00:02] [%clk 00:01:19]}
Rb1 {[%emt 00:00:04] [%clk 00:00:27]} 120. Be3 {[%emt 00:00:02] [%clk 00:01:18]}
Ra1 {[%emt 00:00:10] [%clk 00:00:19]} 121. g6 {[%emt 00:00:02] [%clk 00:01:18]}
Ra6 {[%emt 00:00:05] [%clk 00:00:16]} 122. Nd4 {[%emt 00:00:03] [%clk 00:01:16]}
Ra4 {[%emt 00:00:04] [%clk 00:00:15]} 123. Bf4 {[%clk 00:01:17]} Rb4 {[%emt
00:00:02] [%clk 00:00:15]} 124. Bc7 {[%emt 00:00:01] [%clk 00:01:17]} Rb1 {[%emt
00:00:02] [%clk 00:00:16]} 125. Bd6 {[%emt 00:00:01] [%clk 00:01:18]} Ra1 {[%emt
00:00:02] [%clk 00:00:16]} 126. Bb4 {[%emt 00:00:02] [%clk 00:01:18]} Rb1 {[%clk
00:00:17]} 127. Bc3 {[%emt 00:00:01] [%clk 00:01:19]} Rh1 {[%emt 00:00:01] [%clk
00:00:18]} 128. Bd2 {[%emt 00:00:01] [%clk 00:01:20]} Rh2 {[%emt 00:00:02] [%clk
00:00:18]} 129. Be3 {[%emt 00:00:01] [%clk 00:01:20]} Rh1 {[%emt 00:00:02] [%clk
00:00:19]} 130. Bf4 {[%clk 00:01:21]} Ra1 {[%emt 00:00:02] [%clk 00:00:20]} 131.
Bg5 {[%clk 00:01:21]} Ra2 {[%emt 00:00:03] [%clk 00:00:19]} 132. Be7 {[%emt
00:00:02] [%clk 00:01:21]} Ra4 {[%emt 00:00:01] [%clk 00:00:20]} 133. f6 {[%emt
00:00:02] [%clk 00:01:20]} Ra6 {[%emt 00:00:07] [%clk 00:00:16]} 134. Nf3 {[%emt
00:00:06] [%clk 00:01:16]} Ra4+ {[%emt 00:00:03] [%clk 00:00:15]} 135. Kf5
{[%clk 00:01:16]} Ra5+ {[%emt 00:00:02] [%clk 00:00:16]} 136. Ne5 {[%clk
00:01:17]} Ra6 {[%emt 00:00:03] [%clk 00:00:16]} 137. f7+ {[%emt 00:00:04] [%clk
00:01:15]} Kg7 {[%clk 00:00:17]} 138. f8=R {[%emt 00:00:03] [%clk 00:01:15]} 1-0

[Site "Europe Echecs"]

[Event "Championnat d'Europe de Blitz"]
[Date "2024.12.09"]
[White "Baliasnyj, Timur"]
[Black "Fridman, Daniel"]
[WhiteElo "2174"]
[BlackElo "2571"]
[Round "1.22"]
[Result "0-1"]
[TimeControl "180+2"]

1. Nf3 {[%emt 00:00:01] [%clk 00:03:01]} d5 {[%emt 00:01:09] [%clk 00:01:56]} 2.
c4 {[%emt 00:00:05] [%clk 00:02:58]} e6 {[%emt 00:00:02] [%clk 00:01:56]} 3. g3
{[%emt 00:00:01] [%clk 00:02:59]} Nf6 {[%emt 00:00:01] [%clk 00:01:57]} 4. Bg2
{[%clk 00:03:00]} a6 {[%emt 00:00:02] [%clk 00:01:57]} 5. b3 {[%emt 00:00:09]
[%clk 00:02:53]} b5 {[%emt 00:00:02] [%clk 00:01:57]} 6. O-O {[%emt 00:00:09]
[%clk 00:02:46]} Bb7 {[%emt 00:00:01] [%clk 00:01:58]} 7. Ne5 {[%emt 00:00:06]
[%clk 00:02:42]} c5 {[%emt 00:00:04] [%clk 00:01:56]} 8. d4 {[%emt 00:00:12]
[%clk 00:02:32]} Qb6 {[%emt 00:00:19] [%clk 00:01:40]} 9. Be3 {[%emt 00:00:31]
[%clk 00:02:03]} cxd4 {[%emt 00:00:31] [%clk 00:01:11]} 10. Bxd4 {[%emt
00:00:01] [%clk 00:02:03]} Bc5 {[%clk 00:01:12]} 11. Bxc5 {[%emt 00:00:12] [%clk
00:01:53]} Qxc5 {[%emt 00:00:02] [%clk 00:01:13]} 12. Nd2 {[%emt 00:00:11] [%clk
00:01:44]} O-O {[%emt 00:00:03] [%clk 00:01:11]} 13. Rc1 {[%emt 00:00:05] [%clk
00:01:42]} Qe7 {[%emt 00:00:10] [%clk 00:01:02]} 14. Ndf3 {[%emt 00:00:16] [%clk
00:01:28]} Nbd7 {[%emt 00:00:21] [%clk 00:00:43]} 15. cxd5 {[%emt 00:00:09]
[%clk 00:01:21]} Bxd5 {[%emt 00:00:06] [%clk 00:00:39]} 16. Nxd7 {[%emt
00:00:09] [%clk 00:01:14]} Qxd7 {[%emt 00:00:02] [%clk 00:00:40]} 17. Ne5 {[%emt
00:00:05] [%clk 00:01:11]} Qb7 {[%emt 00:00:01] [%clk 00:00:41]} 18. Bxd5 {[%emt
00:00:03] [%clk 00:01:10]} Nxd5 {[%emt 00:00:01] [%clk 00:00:41]} 19. Qd2 {[%emt
00:00:16] [%clk 00:00:56]} b4 {[%clk 00:00:42]} 20. Nc6 {[%emt 00:00:15] [%clk
00:00:42]} a5 {[%emt 00:00:02] [%clk 00:00:43]} 21. a3 {[%clk 00:00:44]} bxa3
{[%emt 00:00:02] [%clk 00:00:44]} 22. Nxa5 {[%emt 00:00:04] [%clk 00:00:42]} Qb4
{[%emt 00:00:09] [%clk 00:00:37]} 23. Qxb4 {[%emt 00:00:10] [%clk 00:00:34]}
Nxb4 {[%emt 00:00:01] [%clk 00:00:38]} 24. Nc6 {[%emt 00:00:02] [%clk 00:00:34]}
Nxc6 {[%emt 00:00:07] [%clk 00:00:33]} 25. Rxc6 {[%emt 00:00:01] [%clk
00:00:35]} Rfb8 {[%clk 00:00:34]} 26. Rc3 {[%emt 00:00:10] [%clk 00:00:27]} Rb4
{[%emt 00:00:02] [%clk 00:00:35]} 27. Ra1 {[%emt 00:00:04] [%clk 00:00:25]} Kf8
{[%clk 00:00:36]} 28. Kf1 {[%emt 00:00:03] [%clk 00:00:24]} h5 {[%emt 00:00:03]}
29. h4 {[%clk 00:00:24]} f6 {[%emt 00:00:03] [%clk 00:00:35]} 30. e3 {[%emt
00:00:08] [%clk 00:00:19]} Kf7 {[%emt 00:00:02] [%clk 00:00:35]} 31. Ke2 {[%clk
00:00:20]} g5 {[%clk 00:00:36]} 32. hxg5 {[%emt 00:00:08] [%clk 00:00:13]} fxg5
{[%emt 00:00:01] [%clk 00:00:37]} 33. Kf3 {[%emt 00:00:04] [%clk 00:00:11]} h4
{[%emt 00:00:05] [%clk 00:00:34]} 34. gxh4 {[%emt 00:00:02] [%clk 00:00:11]}
gxh4 {[%clk 00:00:35]} 35. Kg2 {[%emt 00:00:01] [%clk 00:00:11]} Kf6 {[%emt
00:00:04] [%clk 00:00:35]} 36. Kh3 {[%emt 00:00:01] [%clk 00:00:12]} Ke5 {[%emt
00:00:02] [%clk 00:00:34]} 37. Rc4 {[%emt 00:00:02] [%clk 00:00:13]} Rxc4 {[%emt
00:00:06] [%clk 00:00:30]} 38. bxc4 {[%clk 00:00:13]} Kd6 {[%emt 00:00:04] [%clk
00:00:28]} 39. Ra2 {[%emt 00:00:03] [%clk 00:00:13]} Kc5 {[%clk 00:00:29]} 40.
Kxh4 {[%emt 00:00:02] [%clk 00:00:14]} Kxc4 {[%clk 00:00:30]} 41. f4 {[%emt
00:00:02] [%clk 00:00:14]} Kd3 {[%emt 00:00:05] [%clk 00:00:27]} 42. Kg5 {[%emt
00:00:07] [%clk 00:00:10]} Kxe3 {[%emt 00:00:01] [%clk 00:00:27]} 43. Kf6 {[%emt
00:00:04] [%clk 00:00:08]} Kxf4 {[%emt 00:00:04] [%clk 00:00:25]} 44. Kxe6
{[%clk 00:00:09]} 0-1

[Site "Europe Echecs"]

[Event "Championnat d'Europe de Blitz"]
[Date "2024.12.09"]
[White "Quparadze, Giga"]
[Black "George, Matthew P"]
[WhiteElo "2537"]
[BlackElo "1999"]
[Round "1.23"]
[Result "1-0"]
[TimeControl "180+2"]

1. e4 {[%clk 00:03:03]} c5 {[%emt 00:00:01] [%clk 00:03:04]} 2. Nf3 {[%emt
00:00:10] [%clk 00:03:04]} d6 {[%clk 00:03:05]} 3. d4 {[%clk 00:03:05]} cxd4
{[%clk 00:03:06]} 4. Nxd4 {[%clk 00:03:06]} Nf6 {[%clk 00:03:07]} 5. Nc3 {[%clk
00:03:06]} g6 {[%clk 00:03:08]} 6. g3 {[%emt 00:00:01] [%clk 00:03:05]} Nc6
{[%emt 00:00:11] [%clk 00:03:00]} 7. Bg2 {[%clk 00:03:06]} Nxd4 {[%emt 00:00:03]
[%clk 00:02:59]} 8. Qxd4 {[%emt 00:00:02] [%clk 00:03:06]} Bg7 {[%emt 00:00:01]
[%clk 00:03:00]} 9. O-O {[%emt 00:00:03] [%clk 00:03:05]} O-O {[%emt 00:00:02]
[%clk 00:03:00]} 10. Qd3 {[%emt 00:00:01] [%clk 00:03:05]} Be6 {[%emt 00:00:20]
[%clk 00:02:43]} 11. Nd5 {[%emt 00:00:01] [%clk 00:03:06]} Rc8 {[%emt 00:00:29]
[%clk 00:02:17]} 12. c3 {[%emt 00:00:01] [%clk 00:03:07]} Nd7 {[%emt 00:00:11]
[%clk 00:02:08]} 13. Bg5 {[%emt 00:00:04] [%clk 00:03:03]} f6 {[%emt 00:00:22]}
14. Be3 {[%clk 00:03:01]} b6 {[%emt 00:00:04] [%clk 00:01:51]} 15. h4 {[%emt
00:00:05] [%clk 00:02:58]} Ne5 {[%emt 00:00:08] [%clk 00:01:45]} 16. Qe2 {[%emt
00:00:03] [%clk 00:02:56]} Bxd5 {[%emt 00:00:12] [%clk 00:01:36]} 17. exd5
{[%emt 00:00:02] [%clk 00:02:56]} f5 {[%emt 00:00:01] [%clk 00:01:37]} 18. a4
{[%emt 00:00:11] [%clk 00:02:47]} Qd7 {[%emt 00:00:10] [%clk 00:01:30]} 19. a5
{[%emt 00:00:04] [%clk 00:02:45]} Nc4 {[%emt 00:00:02] [%clk 00:01:29]} 20. axb6
{[%emt 00:00:03] [%clk 00:02:44]} axb6 {[%emt 00:00:04] [%clk 00:01:28]} 21. Bg5
{[%emt 00:00:01] [%clk 00:02:45]} Rf7 {[%emt 00:00:07] [%clk 00:01:23]} 22. Qe6
{[%emt 00:00:14] [%clk 00:02:32]} Qc7 {[%emt 00:00:21] [%clk 00:01:04]} 23. Ra7
{[%emt 00:00:05] [%clk 00:02:29]} Qxa7 {[%emt 00:00:06]} 24. Qxc8+ {[%emt
00:00:02] [%clk 00:02:29]} 1-0

[Site "Europe Echecs"]